lending/lending_fUSD_20260209
["ID","MTS","AMOUNT","RATE_DAILY","PERIOD"]
[404830500,1770604251202,-500.0,0.00044356,120]
[404830501,1770604251212,-500.0,0.00044356,120]
[404830502,1770604251222,-500.0,0.00044356,120]
[404830503,1770604251231,-500.0,0.00044356,120]
[404830504,1770604251240,-500.0,0.00044356,120]
[404830505,1770604251250,-500.0,0.00044356,120]
[404830506,1770604251259,-500.0,0.00044356,120]
[404830507,1770604251268,-500.0,0.00044356,120]
[404830508,1770604251280,-500.0,0.00044356,120]
[404830509,1770604251289,-218.5877191,0.00044356,120]
[404830510,1770604251299,-500.0,0.00044356,120]
[404830511,1770604251309,-500.0,0.00044356,120]
[404830512,1770604251317,-500.0,0.00044356,120]
[404830513,1770604251326,-500.0,0.00044356,120]
[404830514,1770604251336,-500.0,0.00044356,120]
[404830515,1770604251344,-500.0,0.00044356,120]
[404830516,1770604251354,-500.0,0.00044356,120]
[404830517,1770604251363,-500.0,0.00044356,120]
[404830518,1770604251372,-500.0,0.00044356,120]
[404830519,1770604251381,-500.0,0.00044356,120]
[404830520,1770604251390,-500.0,0.00044356,120]
[404830521,1770604251399,-500.0,0.00044356,120]
[404830522,1770604251407,-500.0,0.00044356,120]
[404830523,1770604251416,-517.13599423,0.00044356,120]
[404830524,1770604251426,-510.13889523,0.00044356,120]
[404830525,1770604251435,-519.85,0.00044356,120]
[404830526,1770604251444,-519.85,0.00044356,120]
[404830527,1770604251453,-519.85,0.00044356,120]
[404830528,1770604251462,-519.85,0.00044356,120]
[404830529,1770604251472,-519.85,0.00044356,120]
[404830530,1770604251481,-519.85,0.00044356,120]
[404830531,1770604251490,-519.85,0.00044356,120]
[404830532,1770604251500,-519.85,0.00044356,120]
[404830533,1770604251509,-519.85,0.00044356,120]
[404830534,1770604251518,-519.85,0.00044356,120]
[404830535,1770604251527,-519.85,0.00044356,120]
[404830536,1770604251536,-519.85,0.00044356,120]
[404830537,1770604251545,-519.85,0.00044356,120]
[404830538,1770604251554,-519.85,0.00044356,120]
[404830539,1770604251563,-519.85,0.00044356,120]
[404830540,1770604251572,-519.85,0.00044356,120]
[404830541,1770604251581,-519.85,0.00044356,120]
[404830542,1770604251590,-519.85,0.00044356,120]
[404830543,1770604251600,-519.85,0.00044356,120]
[404830544,1770604251610,-519.85,0.00044356,120]
[404830545,1770604251620,-519.85,0.00044356,120]
[404830546,1770604251629,-519.85,0.00044356,120]
[404830547,1770604251638,-519.85,0.00044356,120]
[404830548,1770604251647,-520.05,0.00044356,120]
[404830549,1770604251658,-500.0,0.00044356,120]
[404830550,1770604251667,-500.0,0.00044356,120]
[404830551,1770604251679,-500.0,0.00044356,120]
[404830552,1770604251690,-500.0,0.00044356,120]
[404830553,1770604251700,-500.0,0.00044356,120]
[404830554,1770604251711,-500.0,0.00044356,120]
[404830555,1770604251721,-500.0,0.00044356,120]
[404830556,1770604251732,-500.0,0.00044356,120]
[404830557,1770604251741,-500.0,0.00044356,120]
[404830558,1770604251750,-500.0,0.00044356,120]
[404830559,1770604251759,-500.0,0.00044356,120]
[404830560,1770604251767,-500.0,0.00044356,120]
[404830561,1770604251777,-500.0,0.00044356,120]
[404830562,1770604251786,-500.0,0.00044356,120]
[404830563,1770604251798,-500.0,0.00044356,120]
[404830564,1770604251808,-500.0,0.00044356,120]
[404830565,1770604251819,-500.0,0.00044356,120]
[404830566,1770604251831,-500.0,0.00044356,120]
[404830567,1770604251840,-500.0,0.00044356,120]
[404830568,1770604251849,-500.0,0.00044356,120]
[404830569,1770604251858,-500.0,0.00044356,120]
[404830570,1770604251867,-500.0,0.00044356,120]
[404830571,1770604251876,-500.0,0.00044356,120]
[404830572,1770604251885,-500.0,0.00044356,120]
[404830573,1770604251895,-500.0,0.00044356,120]
[404830574,1770604251904,-548.03,0.00044356,120]
[404830575,1770604251914,-500.0,0.00044356,120]
[404830576,1770604251923,-500.0,0.00044356,120]
[404830577,1770604251932,-500.0,0.00044356,120]
[404830578,1770604251941,-500.0,0.00044356,120]
[404830579,1770604251950,-500.0,0.00044356,120]
[404830580,1770604251958,-500.0,0.00044356,120]
[404830581,1770604251967,-500.0,0.00044356,120]
[404830582,1770604251976,-500.0,0.00044356,120]
[404830583,1770604251985,-500.0,0.00044356,120]
[404830584,1770604251995,-500.0,0.00044356,120]
[404830585,1770604252005,-500.0,0.00044356,120]
[404830586,1770604252014,-500.0,0.00044356,120]
[404830587,1770604252023,-500.0,0.00044356,120]
[404830588,1770604252032,-500.0,0.00044356,120]
[404830589,1770604252042,-500.0,0.00044356,120]
[404830590,1770604252051,-500.0,0.00044356,120]
[404830591,1770604252060,-500.0,0.00044356,120]
[404830592,1770604252069,-500.0,0.00044356,120]
[404830593,1770604252078,-500.0,0.00044356,120]
[404830594,1770604252088,-500.0,0.00044356,120]
[404830595,1770604252097,-500.0,0.00044356,120]
[404830596,1770604252106,-293.8,0.00044356,120]
[404830597,1770604252115,-500.0,0.00044356,120]
[404830598,1770604252124,-500.0,0.00044356,120]
[404830599,1770604252133,-500.0,0.00044356,120]
[404830600,1770604252142,-500.0,0.00044356,120]
[404830601,1770604252151,-500.0,0.00044356,120]
[404830602,1770604252160,-500.0,0.00044356,120]
[404830603,1770604252169,-500.0,0.00044356,120]
[404830604,1770604252178,-500.0,0.00044356,120]
[404830605,1770604252187,-500.0,0.00044356,120]
[404830606,1770604252196,-500.0,0.00044356,120]
[404830607,1770604252205,-500.0,0.00044356,120]
[404830608,1770604252214,-500.0,0.00044356,120]
[404830609,1770604252223,-500.0,0.00044356,120]
[404830610,1770604252231,-500.0,0.00044356,120]
[404830611,1770604252240,-500.0,0.00044356,120]
[404830612,1770604252249,-500.0,0.00044356,120]
[404830613,1770604252258,-500.0,0.00044356,120]
[404830614,1770604252267,-500.0,0.00044356,120]
[404830615,1770604252276,-500.0,0.00044356,120]
[404830616,1770604252285,-500.0,0.00044356,120]
[404830617,1770604252294,-500.0,0.00044356,120]
[404830618,1770604252303,-364.4,0.00044356,120]
[404830619,1770604252311,-767.19,0.00044356,120]
[404830620,1770604252320,-767.19,0.00044356,120]
[404830621,1770604252329,-767.19,0.00044356,120]
[404830622,1770604252338,-767.19,0.00044356,120]
[404830623,1770604252347,-767.19,0.00044356,120]
[404830624,1770604252356,-767.19,0.00044356,120]
[404830625,1770604252365,-767.19,0.00044356,120]
[404830626,1770604252373,-767.19,0.00044356,120]
[404830627,1770604252382,-767.19,0.00044356,120]
[404830628,1770604252391,-767.19,0.00044356,120]
[404830629,1770604252399,-767.19,0.00044356,120]
[404830630,1770604252409,-767.19,0.00044356,120]
[404830631,1770604252418,-767.19,0.00044356,120]
[404830632,1770604252430,-767.19,0.00044356,120]
[404830633,1770604252439,-767.19,0.00044356,120]
[404830634,1770604252448,-767.19,0.00044356,120]
[404830635,1770604252457,-767.19,0.00044356,120]
[404830636,1770604252467,-767.19,0.00044356,120]
[404830637,1770604252475,-767.19,0.00044356,120]
[404830638,1770604252486,-767.19,0.00044356,120]
[404830639,1770604252495,-767.19,0.00044356,120]
[404830640,1770604252504,-500.0,0.00044356,120]
[404830641,1770604252513,-767.19,0.00044356,120]
[404830642,1770604252522,-500.0,0.00044356,120]
[404830643,1770604252531,-767.19,0.00044356,120]
[404830644,1770604252541,-500.0,0.00044356,120]
[404830645,1770604252550,-767.30857873,0.00044356,120]
[404830646,1770604252559,-500.0,0.00044356,120]
[404830647,1770604252568,-500.0,0.00044356,120]
[404830648,1770604252577,-184.85375489,0.00044356,120]
[404830649,1770604252586,-500.0,0.00044356,120]
[404830650,1770604252595,-500.0,0.00044356,120]
[404830651,1770604252604,-500.0,0.00044356,120]
[404830652,1770604252614,-500.0,0.00044356,120]
[404830653,1770604252623,-450.0,0.00044356,120]
[404830654,1770604252631,-500.0,0.00044356,120]
[404830655,1770604252640,-500.0,0.00044356,120]
[404830656,1770604252650,-500.0,0.00044356,120]
[404830657,1770604252659,-500.0,0.00044356,120]
[404830658,1770604252668,-500.0,0.00044356,120]
[404830659,1770604252677,-495.0,0.00044356,120]
[404830660,1770604252686,-640.22978734,0.00044356,120]
[404830661,1770604252695,-500.0,0.00044356,120]
[404830662,1770604252704,-500.0,0.00044356,120]
[404830663,1770604252713,-500.0,0.00044356,120]
[404830664,1770604252722,-500.0,0.00044356,120]
[404830665,1770604252731,-500.0,0.00044356,120]
[404830666,1770604252740,-500.0,0.00044356,120]
[404830667,1770604252749,-500.0,0.00044356,120]
[404830668,1770604252757,-500.0,0.00044356,120]
[404830669,1770604252766,-290.34,0.00044356,120]
[404830670,1770604252775,-500.0,0.00044356,120]
[404830671,1770604252784,-500.0,0.00044356,120]
[404830672,1770604252792,-500.0,0.00044356,120]
[404830673,1770604252801,-500.0,0.00044356,120]
[404830674,1770604252809,-500.0,0.00044356,120]
[404830675,1770604252818,-480.01177626,0.00044356,120]
[404830676,1770604252827,-500.0,0.00044356,120]
[404830677,1770604252835,-500.0,0.00044356,120]
[404830678,1770604252844,-500.0,0.00044356,120]
[404830679,1770604252853,-500.0,0.00044356,120]
[404830680,1770604252861,-500.0,0.00044356,120]
[404830681,1770604252870,-500.0,0.00044356,120]
[404830682,1770604252879,-500.0,0.00044356,120]
[404830683,1770604252888,-519.37932773,0.00044356,120]
[404830684,1770604252896,-500.0,0.00044356,120]
[404830685,1770604252905,-500.0,0.00044356,120]
[404830686,1770604252913,-500.0,0.00044356,120]
[404830687,1770604252922,-500.0,0.00044356,120]
[404830688,1770604252931,-500.0,0.00044356,120]
[404830689,1770604252940,-451.69915001,0.00044356,120]
[404830690,1770604252950,-500.0,0.00044356,120]
[404830691,1770604252960,-500.0,0.00044356,120]
[404830692,1770604252970,-500.0,0.00044356,120]
[404830693,1770604252979,-500.0,0.00044356,120]
[404830694,1770604252988,-500.0,0.00044356,120]
[404830695,1770604252997,-500.0,0.00044356,120]
[404830696,1770604253006,-500.0,0.00044356,120]
[404830697,1770604253015,-547.76150713,0.00044356,120]
[404830698,1770604253024,-500.0,0.00044356,120]
[404830699,1770604253033,-500.0,0.00044356,120]
[404830700,1770604253042,-500.0,0.00044356,120]
[404830701,1770604253051,-500.0,0.00044356,120]
[404830702,1770604253060,-577.59265795,0.00044356,120]
[404830703,1770604253069,-1000.0,0.00044384,30]
[404830704,1770604253078,-200.0,0.000444,120]
[404830705,1770604253087,-150.0,0.000444,74]
[404830706,1770604253097,-166.4284646,0.00044406,2]
[404830707,1770604253106,-154.07077507,0.00044438,120]
[404830708,1770604253116,-213.12,0.0004444,120]
[404830709,1770604253125,-262.08,0.0004444,120]
[404830710,1770604253134,-744.94,0.0004444,120]
[404830711,1770604253144,-744.94,0.0004444,120]
[404830712,1770604253153,-744.94,0.0004444,120]
[404830713,1770604253163,-744.94,0.0004444,120]
[404830714,1770604253172,-744.94,0.0004444,120]
[404830715,1770604253181,-744.94,0.0004444,120]
[404830716,1770604253190,-744.94,0.0004444,120]
[404830717,1770604253199,-745.07,0.0004444,120]
[404830718,1770604253207,-564.92,0.0004444,120]
[404830719,1770604253217,-564.92,0.0004444,120]
[404830720,1770604253227,-564.92,0.0004444,120]
[404830721,1770604253236,-564.92,0.0004444,120]
[404830722,1770604253245,-564.92,0.0004444,120]
[404830723,1770604253254,-564.92,0.0004444,120]
[404830724,1770604253264,-565.08,0.0004444,120]
[404830725,1770604253273,-500.0,0.0004444,120]
[404830726,1770604253283,-500.0,0.0004444,120]
[404830727,1770604253292,-500.0,0.0004444,120]
[404830728,1770604253301,-500.0,0.0004444,120]
[404830729,1770604253310,-500.0,0.0004444,120]
[404830730,1770604253320,-159.42,0.0004444,120]
[404830731,1770604253328,-500.0,0.0004444,120]
[404830732,1770604253338,-500.0,0.0004444,30]
[404830733,1770604253347,-480.0,0.0004444,30]
[404830734,1770604253357,-500.0,0.0004444,120]
[404830735,1770604253366,-184.3,0.0004444,120]
[404830736,1770604253376,-500.0,0.0004444,120]
[404830737,1770604253385,-500.0,0.0004444,120]
[404830738,1770604253394,-38908.88771444,0.00044441,54]
[404830739,1770604253403,-500.0,0.00044441,30]
[404830740,1770604253412,-500.0,0.00044441,120]
[404830741,1770604253422,-500.0,0.00044441,120]
[404830742,1770604253434,-500.0,0.00044441,120]
[404830743,1770604253443,-520.28139783,0.00044441,120]
[404830744,1770604253452,-500.0,0.00044441,120]
[404830745,1770604253462,-515.42111326,0.00044441,120]
[404830746,1770604253471,-500.0,0.00044441,120]
[404830747,1770604253480,-213.9435975,0.00044441,120]
[404830748,1770604253490,-151.94962242,0.00044441,120]
[404830749,1770604253501,-544.18971334,0.00044441,120]
[404830750,1770604253512,-500.0,0.00044441,120]
[404830751,1770604253521,-500.0,0.00044441,120]
[404830752,1770604253530,-500.0,0.00044441,120]
[404830753,1770604253539,-500.0,0.00044441,120]
[404830754,1770604253548,-500.0,0.00044441,120]
[404830755,1770604253557,-500.0,0.00044441,120]
[404830756,1770604253566,-500.0,0.00044441,120]
[404830757,1770604253575,-500.0,0.00044441,120]
[404830758,1770604253585,-565.5612693,0.00044441,120]
[404830759,1770604253595,-500.0,0.00044441,120]
[404830760,1770604253605,-539.37686345,0.00044441,120]
[404830761,1770604253613,-278.76092569,0.00044441,120]
[404830762,1770604253623,-500.0,0.00044441,120]
[404830763,1770604253632,-500.0,0.00044441,120]
[404830764,1770604253642,-525.06567098,0.00044441,120]
[404830765,1770604253651,-535.24807009,0.00044441,120]
[404830766,1770604253660,-507.49681569,0.00044441,120]
[404830767,1770604253670,-500.0,0.00044441,120]
[404830768,1770604253680,-500.0,0.00044441,120]
[404830769,1770604253689,-500.0,0.00044441,120]
[404830770,1770604253698,-500.0,0.00044441,120]
[404830771,1770604253708,-510.60080135,0.00044441,120]
[404830772,1770604253718,-508.77336621,0.00044441,120]
[404830773,1770604253728,-638.37952593,0.00044441,120]
[404830774,1770604253737,-500.0,0.00044441,120]
[404830775,1770604253747,-154.876343,0.00044441,120]
[404830776,1770604253756,-500.0,0.00044441,120]
[404830777,1770604253765,-512.51425571,0.00044441,120]
[404830778,1770604253775,-533.81213362,0.00044441,120]
[404830779,1770604253784,-500.0,0.00044441,120]
[404830780,1770604253793,-229.92065015,0.00044441,120]
[404830781,1770604253802,-521.6809876,0.00044441,120]
[404830782,1770604253812,-582.15231192,0.00044441,120]
[404830783,1770604253821,-500.0,0.00044441,53]
[404830784,1770604253831,-154.248476,0.00044441,60]
[404830785,1770604253841,-155.222338,0.00044441,120]
[404830786,1770604253851,-507.86046045,0.00044441,120]
[404830787,1770604253862,-500.0,0.00044441,120]
[404830788,1770604253871,-513.15842936,0.00044441,120]
[404830789,1770604253881,-500.0,0.00044441,120]
[404830790,1770604253890,-518.42745772,0.00044441,120]
[404830791,1770604253899,-390.5603792,0.00044441,120]
[404830792,1770604253909,-151.0,0.00044441,120]
[404830793,1770604253918,-167.059965,0.00044441,120]
[404830794,1770604253928,-500.0,0.00044441,120]
[404830795,1770604253938,-500.0,0.00044441,120]
[404830796,1770604253947,-500.0,0.00044441,120]
[404830797,1770604253957,-500.0,0.00044441,120]
[404830798,1770604253968,-500.0,0.00044441,120]
[404830799,1770604253977,-509.79346194,0.00044441,120]
[404830800,1770604253988,-500.0,0.00044441,120]
[404830801,1770604253998,-515.35459206,0.00044441,120]
[404830802,1770604254008,-500.0,0.00044441,120]
[404830803,1770604254017,-500.0,0.00044441,120]
[404830804,1770604254028,-500.0,0.00044441,120]
[404830805,1770604254038,-500.0,0.00044441,120]
[404830806,1770604254048,-504.38951299,0.00044441,120]
[404830807,1770604254058,-500.0,0.00044441,120]
[404830808,1770604254068,-500.0,0.00044441,120]
[404830809,1770604254078,-500.0,0.00044441,120]
[404830810,1770604254088,-502.45299338,0.00044441,30]
[404830811,1770604254099,-508.58258084,0.00044441,120]
[404830812,1770604254108,-500.0,0.00044441,120]
[404830813,1770604254118,-374.68910676,0.00044441,120]
[404830814,1770604254127,-500.0,0.00044441,120]
[404830815,1770604254137,-548.28349784,0.00044441,120]
[404830816,1770604254146,-500.0,0.00044441,120]
[404830817,1770604254156,-500.0,0.00044441,120]
[404830818,1770604254166,-500.0,0.00044441,120]
[404830819,1770604254176,-500.0,0.00044441,120]
[404830820,1770604254186,-500.0,0.00044441,120]
[404830821,1770604254195,-500.0,0.00044441,120]
[404830822,1770604254205,-500.0,0.00044441,120]
[404830823,1770604254215,-500.0,0.00044441,7]
[404830824,1770604254224,-222.507717,0.00044441,120]
[404830825,1770604254234,-510.70083647,0.00044441,120]
[404830826,1770604254243,-500.0,0.00044441,120]
[404830827,1770604254252,-500.0,0.00044441,120]
[404830828,1770604254262,-500.0,0.00044441,120]
[404830829,1770604254271,-152.89817509,0.00044441,120]
[404830830,1770604254281,-500.0,0.00044441,120]
[404830831,1770604254290,-500.0,0.00044441,120]
[404830832,1770604254300,-500.0,0.00044441,120]
[404830833,1770604254310,-500.0,0.00044441,120]
[404830834,1770604254319,-500.0,0.00044441,120]
[404830835,1770604254328,-500.0,0.00044441,120]
[404830836,1770604254339,-500.0,0.00044441,120]
[404830837,1770604254348,-500.0,0.00044441,120]
[404830838,1770604254358,-500.0,0.00044441,120]
[404830839,1770604254367,-500.0,0.00044441,120]
[404830840,1770604254378,-190.45,0.00044441,14]
[404830841,1770604254388,-5000.0,0.00044441,120]
[404830842,1770604254399,-5000.0,0.00044441,120]
[404830843,1770604254410,-5000.0,0.00044441,120]
[404830844,1770604254422,-5000.0,0.00044441,120]
[404830845,1770604254437,-151.0,0.00044441,120]
[404830846,1770604254448,-500.0,0.00044441,30]
[404830847,1770604254459,-151.0,0.00044441,120]
[404830848,1770604254470,-5000.0,0.00044441,120]
[404830849,1770604254480,-151.0,0.00044441,120]
[404830850,1770604254490,-5000.0,0.00044441,120]
[404830851,1770604254501,-156.529385,0.00044441,120]
[404830852,1770604254511,-5000.0,0.00044441,120]
[404830853,1770604254521,-5000.0,0.00044441,120]
[404830854,1770604254531,-5000.0,0.00044441,120]
[404830855,1770604254541,-5000.0,0.00044441,120]
[404830856,1770604254550,-5000.0,0.00044441,120]
[404830857,1770604254560,-5000.0,0.00044441,120]
[404830858,1770604254570,-3085.669753,0.00044441,120]
[404830859,1770604254579,-251.165894,0.00044441,120]
[404830860,1770604254589,-228.686269,0.00044441,120]
[404830861,1770604254599,-257.651606,0.00044441,120]
[404830862,1770604254608,-177.909811,0.00044441,7]
[404830863,1770604254618,-177.909811,0.00044441,7]
[404830864,1770604254627,-177.909811,0.00044441,7]
[404830865,1770604254637,-177.909811,0.00044441,7]
[404830866,1770604254646,-177.909811,0.00044441,7]
[404830867,1770604254656,-177.909811,0.00044441,7]
[404830868,1770604254665,-177.909811,0.00044441,7]
[404830869,1770604254675,-177.909811,0.00044441,7]
[404830870,1770604254685,-177.909811,0.00044441,7]
[404830871,1770604254695,-177.909811,0.00044441,7]
[404830872,1770604254704,-177.909811,0.00044441,7]
[404830873,1770604254714,-177.909811,0.00044441,7]
[404830874,1770604254723,-177.909811,0.00044441,7]
[404830875,1770604254733,-177.909811,0.00044441,7]
[404830876,1770604254745,-177.909811,0.00044441,7]
[404830877,1770604254755,-177.909811,0.00044441,7]
[404830878,1770604254765,-177.909811,0.00044441,7]
[404830879,1770604254774,-177.909811,0.00044441,7]
[404830880,1770604254784,-177.909811,0.00044441,7]
[404830881,1770604254794,-177.909811,0.00044441,7]
[404830882,1770604254803,-151.0,0.00044441,120]
[404830883,1770604254814,-151.0,0.00044441,120]
[404830884,1770604254824,-151.0,0.00044441,120]
[404830885,1770604254833,-151.0,0.00044441,120]
[404830886,1770604254843,-151.0,0.00044441,120]
[404830887,1770604254855,-151.0,0.00044441,120]
[404830888,1770604254865,-228.211159,0.00044441,120]
[404830889,1770604254875,-7006762.39742883,0.00044441,10]
[404830890,1770604255038,-4135.55298167,0.00044441,10]
[404830891,1770604255169,-500.0,0.00044356,120]
[404830892,1770604255180,-500.0,0.00044356,120]
[404830893,1770604255190,-500.0,0.00044356,120]
[404830894,1770604255200,-500.0,0.00044356,120]
[404830895,1770604255211,-189.52168761,0.00044356,120]
[404830896,1770604255221,-500.0,0.00044356,120]
[404830897,1770604255230,-500.0,0.00044356,120]
[404830898,1770604255240,-500.0,0.00044356,120]
[404830899,1770604255250,-500.0,0.00044356,120]
[404830900,1770604255260,-342.03831239,0.00044356,120]
[404830901,1770604255285,-157.96168761,0.00044356,120]
[404830902,1770604255295,-407.03831239,0.00044356,120]
[404830903,1770604255329,-92.96168761,0.00044356,120]
[404830904,1770604255339,-500.0,0.00044356,120]
[404830905,1770604255349,-299.85693439,0.00044356,120]
[404830906,1770604255361,-200.14306561,0.00044356,120]
[404830907,1770604255371,-500.0,0.00044356,120]
[404830908,1770604255382,-432665.90302297,0.00044441,10]
[404830909,1770604255810,-4868.0,0.000309,2]
[404830910,1770604255854,-301.1,0.000309,2]
[404830911,1770604255865,-1600.28260197,0.000309,2]
[404830912,1770604255877,-8918.3791467,0.000309,2]
[404830913,1770604256097,-1622.66022131,0.000309,2]
[404830914,1770604256242,-73.34369842,0.000309,2]
[404830915,1770604256281,-3382.62678761,0.000309,2]
[404830916,1770604257320,-366.55475995,0.000309,2]
[404830917,1770604257410,4347.99344428,0.000179,2]
[404830918,1770604257435,5196.67758593,0.000179,2]
[404830919,1770604287100,500.0,0.00017999,2]
[404830920,1770604287437,577.87283872,0.00017999,2]
[404830921,1770604296310,500.0,0.00017999,2]
[404830922,1770604296551,500.0,0.00017999,2]
[404830923,1770604296799,553.94559675,0.00017999,2]
[404830928,1770604578615,500.0,0.00017999,2]
[404830929,1770604578816,500.0,0.00017999,2]
[404830930,1770604579069,509.12351562,0.00017999,2]
[404830931,1770604593669,504.16717582,0.00032876,30]
[404830932,1770604616490,500.0,0.00017999,2]
[404830933,1770604616720,543.90750683,0.00017999,2]
[404830934,1770604727614,500.0,0.00017999,2]
[404830935,1770604727840,500.0,0.00017999,2]
[404830936,1770604728074,500.0,0.00017999,2]
[404830937,1770604728314,502.16669694,0.00017999,2]
[404830938,1770604977872,152.89817509,0.00017999,2]
[404830939,1770605057325,344.40309318,0.00035589,120]
[404830940,1770605061629,500.0,0.00017999,2]
[404830942,1770605370235,1163.0,0.00035616,30]
[404830943,1770605374131,-160.0,0.00030688,2]
[404830944,1770605374151,-250.0,0.00030757,2]
[404830945,1770605374173,-273.1,0.000308,2]
[404830946,1770605374195,-256.669628,0.000308,2]
[404830947,1770605374219,-250.0,0.0003096,2]
[404830948,1770605374243,-174.11,0.00031438,2]
[404830949,1770605374267,-256.669628,0.00031627,2]
[404830950,1770605374287,-544.94,0.00032064,2]
[404830951,1770605374308,-256.669628,0.00032455,2]
[404830952,1770605374328,-509.0,0.00032616,2]
[404830953,1770605374353,-1200.0,0.00032872,3]
[404830954,1770605374375,-400.0,0.00032872,2]
[404830955,1770605374394,-150.99,0.00032873,2]
[404830956,1770605374415,-662.133822,0.00032873,2]
[404830958,1770605432132,-430.59119883,0.00032873,2]
[404830959,1770605432186,-4534.48497917,0.00032873,2]
[404830960,1770605432196,-999.99,0.00032873,2]
[404830961,1770605432207,-250.0,0.00033078,2]
[404830962,1770605432216,-256.669628,0.00033282,2]
[404830963,1770605432227,-151.0,0.00033766,2]
[404830964,1770605432236,-151.0,0.00033766,2]
[404830965,1770605432246,-151.0,0.00033766,2]
[404830966,1770605432256,-151.0,0.00033766,2]
[404830967,1770605432268,-151.0,0.00033766,2]
[404830968,1770605432278,-151.0,0.00033766,2]
[404830969,1770605432287,-151.0,0.00033766,2]
[404830970,1770605432297,-151.0,0.00033766,2]
[404830971,1770605432306,-200.0,0.00033785,2]
[404830972,1770605432316,-92822.51466939,0.00033786,2]
[404830973,1770605432325,-250.0,0.00033786,2]
[404830974,1770605432334,-256.669628,0.0003411,2]
[404830975,1770605432344,-305.96973744,0.00034207,3]
[404830976,1770605432354,-150.0,0.00034904,2]
[404830977,1770605432363,-256.669628,0.00035764,2]
[404830978,1770605432374,-77.30653139,0.00035848,2]
[404830979,1770605432386,-115.26346861,0.00035848,2]
[404830980,1770605432395,-250.0,0.0003616,2]
[404830981,1770605432405,-256.669628,0.00036592,2]
[404830982,1770605432414,-150.0,0.00036649,2]
[404830983,1770605432423,-49.6606406,0.00036816,2]
[404830984,1770605432434,-950.3393594,0.00036816,2]
[404830985,1770605432443,-1000.0,0.00036935,2]
[404830986,1770605432453,-4586.14,0.00036992,2]
[404830987,1770605432463,-930.6341208,0.00037405,2]
[404830988,1770605432472,-1000.0,0.00037406,20]
[404830989,1770605432481,-256.669628,0.00037419,2]
[404830990,1770605432490,-153.29762531,0.00037474,2]
[404830991,1770605432501,-24.28237469,0.00037474,2]
[404830992,1770605432510,-256.669628,0.00038247,2]
[404830993,1770605432520,-1474.5857191,0.00038374,2]
[404830994,1770605432535,-328.0184482,0.00038374,2]
[404830995,1770605432552,-648.3458327,0.00038374,2]
[404830996,1770605432561,-157.5021673,0.00038461,2]
[404830997,1770605432577,-775.90810714,0.00038461,2]
[404831019,1770605438181,-2889.84169753,0.00038461,2]
[404831020,1770605438193,-2418.07525,0.00038461,2]
[404831021,1770605438204,-1680.96,0.00038461,2]
[404831022,1770605438235,-778.39739406,0.00038461,2]
[404831023,1770605438290,-352.98,0.00038461,2]
[404831024,1770605438301,-5275.90333579,0.00038461,2]
[404831025,1770605438397,-815.38944431,0.00038461,2]
[404831026,1770605438407,-150.0,0.00038482,2]